[Event "*** Qualifier 4: Titled Tuesday 3|2 Blitz"]
[Site "Chess.com"]
[Date "2017.04.25"]
[Round "4"]
[White "Sanan_Sjugirov"]
[Black "severomorskij"]
[Result "0-1"]
[WhiteElo "2642"]
[BlackElo "2664"]
[TimeControl "180+2"]
[EndTime "13:50:46 PDT"]
[Termination "severomorskij won by resignation"]

1. e4 {[%clk 0:03:02]} 1... c5 {[%clk 0:02:59.9]} 2. Nf3 {[%clk 0:03:03.1]} 2...
e6 {[%clk 0:03:01]} 3. d4 {[%clk 0:03:02.9]} 3... cxd4 {[%clk 0:03:02]} 4. Nxd4
{[%clk 0:03:04.8]} 4... a6 {[%clk 0:03:03.2]} 5. Bd3 {[%clk 0:03:04.2]} 5... Bc5
{[%clk 0:03:03.3]} 6. Nb3 {[%clk 0:03:05]} 6... Ba7 {[%clk 0:03:04]} 7. O-O
{[%clk 0:03:04.8]} 7... Nc6 {[%clk 0:03:02.4]} 8. Qe2 {[%clk 0:03:03.3]} 8... d6
{[%clk 0:03:01]} 9. c4 {[%clk 0:02:59.7]} 9... Nf6 {[%clk 0:03:02]} 10. Be3
{[%clk 0:02:57.5]} 10... O-O {[%clk 0:03:00]} 11. Nc3 {[%clk 0:02:57.5]} 11...
e5 {[%clk 0:02:59]} 12. Bxa7 {[%clk 0:02:57.1]} 12... Rxa7 {[%clk 0:02:59.3]}
13. Qe3 {[%clk 0:02:54.2]} 13... Ng4 {[%clk 0:02:24]} 14. Qg3 {[%clk 0:02:49.6]}
14... Nf6 {[%clk 0:02:23]} 15. Rfd1 {[%clk 0:02:33.1]} 15... Be6 {[%clk
0:02:20.9]} 16. Be2 {[%clk 0:02:26.5]} 16... Qe7 {[%clk 0:01:58.4]} 17. Qe3
{[%clk 0:02:22]} 17... Raa8 {[%clk 0:01:57.7]} 18. Rac1 {[%clk 0:02:08.2]} 18...
Rac8 {[%clk 0:01:53.7]} 19. Na4 {[%clk 0:01:50.4]} 19... h6 {[%clk 0:01:26.3]}
20. Nb6 {[%clk 0:01:49.6]} 20... Rcd8 {[%clk 0:01:27.4]} 21. h3 {[%clk
0:01:39.4]} 21... Nd7 {[%clk 0:00:54.6]} 22. Nd5 {[%clk 0:01:31.1]} 22... Qg5
{[%clk 0:00:54.9]} 23. Qxg5 {[%clk 0:00:26.9]} 23... hxg5 {[%clk 0:00:56.8]} 24.
Bg4 {[%clk 0:00:23.6]} 24... Nc5 {[%clk 0:00:50.8]} 25. Bxe6 {[%clk 0:00:15.3]}
25... fxe6 {[%clk 0:00:46.2]} 26. Nc3 {[%clk 0:00:10.2]} 26... Nxb3 {[%clk
0:00:43.4]} 27. axb3 {[%clk 0:00:12.1]} 27... Nd4 {[%clk 0:00:44.3]} 28. b4
{[%clk 0:00:13.3]} 28... Rc8 {[%clk 0:00:43.1]} 29. Nb1 {[%clk 0:00:11.3]} 29...
Ne2+ {[%clk 0:00:43.1]} 30. Kf1 {[%clk 0:00:12.1]} 30... Nxc1 {[%clk 0:00:43]}
31. Rxc1 {[%clk 0:00:14]} 31... d5 {[%clk 0:00:35.9]} 32. b3 {[%clk 0:00:11.4]}
32... dxc4 {[%clk 0:00:20.2]} 33. bxc4 {[%clk 0:00:13.3]} 33... Rfd8 {[%clk
0:00:21.5]} 34. Ke2 {[%clk 0:00:14.1]} 34... Rd4 {[%clk 0:00:18.8]} 35. Nd2
{[%clk 0:00:14.4]} 35... b5 {[%clk 0:00:20]} 36. Rc3 {[%clk 0:00:08.7]} 36...
bxc4 {[%clk 0:00:20.7]} 37. Ke3 {[%clk 0:00:09.7]} 37... Rd3+ {[%clk 0:00:14.3]}
38. Rxd3 {[%clk 0:00:10.4]} 38... cxd3 {[%clk 0:00:15.8]} 39. Kxd3 {[%clk
0:00:12.3]} 39... Kf7 {[%clk 0:00:16.5]} 40. Nc4 {[%clk 0:00:11.4]} 40... Kf6
{[%clk 0:00:17.4]} 41. Ne3 {[%clk 0:00:12.8]} 41... Rc1 {[%clk 0:00:13.4]} 42.
Ng4+ {[%clk 0:00:13.8]} 42... Ke7 {[%clk 0:00:14]} 43. Nxe5 {[%clk 0:00:15.7]}
43... Rb1 {[%clk 0:00:10.8]} 44. Kc3 {[%clk 0:00:15.8]} 44... Rg1 {[%clk
0:00:10.1]} 45. g3 {[%clk 0:00:15.5]} 45... Rg2 {[%clk 0:00:11.2]} 46. Ng4
{[%clk 0:00:14.5]} 46... Rg1 {[%clk 0:00:09.8]} 47. Ne5 {[%clk 0:00:15]} 47...
Rf1 {[%clk 0:00:08.2]} 48. Nd3 {[%clk 0:00:10.4]} 48... Kd6 {[%clk 0:00:06.3]}
49. Kd4 {[%clk 0:00:10.5]} 49... Rd1 {[%clk 0:00:06.1]} 50. Kc3 {[%clk
0:00:10.8]} 50... e5 {[%clk 0:00:06.7]} 51. Kc4 {[%clk 0:00:11.2]} 51... Rh1
{[%clk 0:00:05.5]} 52. Nc5 {[%clk 0:00:11.3]} 52... Rc1+ {[%clk 0:00:06.1]} 53.
Kd3 {[%clk 0:00:10.2]} 53... Rxc5 {[%clk 0:00:07.1]} 54. bxc5+ {[%clk
0:00:11.1]} 54... Kxc5 {[%clk 0:00:08.6]} 55. Kc3 {[%clk 0:00:09.7]} 55... a5
{[%clk 0:00:09.7]} 56. f3 {[%clk 0:00:03.8]} 56... a4 {[%clk 0:00:10.7]} 57. h4
{[%clk 0:00:03.8]} 57... gxh4 {[%clk 0:00:11.2]} 58. gxh4 {[%clk 0:00:05.7]}
58... a3 {[%clk 0:00:11.9]} 59. h5 {[%clk 0:00:05]} 59... a2 {[%clk 0:00:11.1]}
60. Kb2 {[%clk 0:00:06.2]} 60... Kd4 {[%clk 0:00:12.3]} 61. Kxa2 {[%clk
0:00:07.5]} 61... Ke3 {[%clk 0:00:13.1]} 62. Kb3 {[%clk 0:00:07.9]} 62... Kxf3
{[%clk 0:00:14.2]} 63. Kc2 {[%clk 0:00:08.3]} 63... Kxe4 {[%clk 0:00:15.1]} 0-1

[Event "*** Qualifier 4: Titled Tuesday 3|2 Blitz"]
[Site "Chess.com"]
[Date "2017.04.25"]
[Round "4"]
[White "brauliocuarta"]
[Black "aa175"]
[Result "1-0"]
[WhiteElo "2042"]
[BlackElo "1811"]
[TimeControl "180+2"]
[EndTime "13:50:50 PDT"]
[Termination "brauliocuarta won by checkmate"]

1. d4 {[%clk 0:03:01.9]} 1... d5 {[%clk 0:02:53.8]} 2. c4 {[%clk 0:03:02.3]}
2... dxc4 {[%clk 0:02:54.2]} 3. Nf3 {[%clk 0:03:02.2]} 3... Nf6 {[%clk
0:02:53.9]} 4. e3 {[%clk 0:03:03.4]} 4... Bg4 {[%clk 0:02:52.8]} 5. Bxc4 {[%clk
0:03:03.7]} 5... e6 {[%clk 0:02:50.8]} 6. Qb3 {[%clk 0:02:54.8]} 6... b6 {[%clk
0:02:18.6]} 7. Ne5 {[%clk 0:02:51.6]} 7... Bd6 {[%clk 0:02:15.4]} 8. Bb5+ {[%clk
0:02:15.1]} 8... Ke7 {[%clk 0:02:12.3]} 9. Nxg4 {[%clk 0:02:04.1]} 9... Nxg4
{[%clk 0:02:11.3]} 10. h3 {[%clk 0:01:50.6]} 10... Nf6 {[%clk 0:02:00.6]} 11.
Nc3 {[%clk 0:01:51.5]} 11... c6 {[%clk 0:01:59.6]} 12. Be2 {[%clk 0:01:45]}
12... Re8 {[%clk 0:01:58]} 13. e4 {[%clk 0:01:45.4]} 13... e5 {[%clk 0:01:56.1]}
14. dxe5 {[%clk 0:01:27.9]} 14... Bxe5 {[%clk 0:01:56.8]} 15. O-O {[%clk
0:01:25.9]} 15... Kf8 {[%clk 0:01:56]} 16. Be3 {[%clk 0:01:22.2]} 16... Kg8
{[%clk 0:01:55.3]} 17. Rad1 {[%clk 0:01:22.5]} 17... Qc7 {[%clk 0:01:53.3]} 18.
f4 {[%clk 0:01:23]} 18... Bxc3 {[%clk 0:01:50]} 19. bxc3 {[%clk 0:01:20.2]}
19... Nxe4 {[%clk 0:01:46.4]} 20. Bf3 {[%clk 0:01:14]} 20... Nd7 {[%clk
0:01:36.6]} 21. Bd4 {[%clk 0:01:05.2]} 21... Ndc5 {[%clk 0:01:32.7]} 22. Qc2
{[%clk 0:01:02.5]} 22... Qxf4 {[%clk 0:01:26.2]} 23. Bh5 {[%clk 0:00:53.2]}
23... Qg3 {[%clk 0:00:50.9]} 24. Bxf7+ {[%clk 0:00:52.2]} 24... Kh8 {[%clk
0:00:49.7]} 25. Bxe8 {[%clk 0:00:52.4]} 25... Rxe8 {[%clk 0:00:51.6]} 26. Rf3
{[%clk 0:00:52.5]} 26... Qg6 {[%clk 0:00:29.9]} 27. Rdf1 {[%clk 0:00:50.8]}
27... h6 {[%clk 0:00:16.2]} 28. Bxc5 {[%clk 0:00:50.2]} 28... bxc5 {[%clk
0:00:16.7]} 29. Rf8+ {[%clk 0:00:47.5]} 29... Rxf8 {[%clk 0:00:15]} 30. Rxf8+
{[%clk 0:00:49.4]} 30... Kh7 {[%clk 0:00:15.8]} 31. Rf4 {[%clk 0:00:49.6]} 31...
Nd6 {[%clk 0:00:12.7]} 32. Qxg6+ {[%clk 0:00:46.8]} 32... Kxg6 {[%clk
0:00:14.6]} 33. Ra4 {[%clk 0:00:46.4]} 33... Nb5 {[%clk 0:00:12.1]} 34. c4
{[%clk 0:00:43.9]} 34... Nd6 {[%clk 0:00:12.9]} 35. Rxa7 {[%clk 0:00:41.9]}
35... Nxc4 {[%clk 0:00:13.5]} 36. Rc7 {[%clk 0:00:38.2]} 36... Na5 {[%clk
0:00:06.9]} 37. Ra7 {[%clk 0:00:36.2]} 37... Nc4 {[%clk 0:00:07.3]} 38. Ra6
{[%clk 0:00:35.7]} 38... Ne5 {[%clk 0:00:07.5]} 39. Kf2 {[%clk 0:00:35]} 39...
c4 {[%clk 0:00:07.9]} 40. Ke3 {[%clk 0:00:35.8]} 40... Kf5 {[%clk 0:00:07.3]}
41. Kd4 {[%clk 0:00:35.2]} 41... Ke6 {[%clk 0:00:07.8]} 42. Ra5 {[%clk 0:00:34]}
42... Nd3 {[%clk 0:00:04]} 43. Kxc4 {[%clk 0:00:32.8]} 43... Nf4 {[%clk
0:00:05]} 44. Rc5 {[%clk 0:00:23.9]} 44... Kd6 {[%clk 0:00:05.2]} 45. a4 {[%clk
0:00:21.4]} 45... Nxg2 {[%clk 0:00:06.1]} 46. a5 {[%clk 0:00:22.4]} 46... Ne3+
{[%clk 0:00:07.3]} 47. Kb4 {[%clk 0:00:22.5]} 47... Nd5+ {[%clk 0:00:07.5]} 48.
Kc4 {[%clk 0:00:22.2]} 48... Ne3+ {[%clk 0:00:06.1]} 49. Kd4 {[%clk 0:00:23.4]}
49... Ng2 {[%clk 0:00:03.4]} 50. a6 {[%clk 0:00:24.1]} 50... Nf4 {[%clk
0:00:03.8]} 51. Ra5 {[%clk 0:00:22.8]} 51... Ne6+ {[%clk 0:00:04.5]} 52. Kc4
{[%clk 0:00:22.6]} 52... Nc7 {[%clk 0:00:05.7]} 53. a7 {[%clk 0:00:23.4]} 53...
Na8 {[%clk 0:00:06.8]} 54. h4 {[%clk 0:00:22.3]} 54... Kc7 {[%clk 0:00:07.8]}
55. Kc5 {[%clk 0:00:19.4]} 55... Kb7 {[%clk 0:00:08.6]} 56. Ra1 {[%clk
0:00:17.7]} 56... g5 {[%clk 0:00:08.5]} 57. hxg5 {[%clk 0:00:18.2]} 57... hxg5
{[%clk 0:00:09.8]} 58. Rb1+ {[%clk 0:00:12.7]} 58... Kxa7 {[%clk 0:00:10.5]} 59.
Kxc6 {[%clk 0:00:14]} 59... g4 {[%clk 0:00:08.2]} 60. Rg1 {[%clk 0:00:14.6]}
60... Nb6 {[%clk 0:00:07.9]} 61. Ra1+ {[%clk 0:00:12.9]} 61... Kb8 {[%clk
0:00:08.4]} 62. Kxb6 {[%clk 0:00:14]} 62... Kc8 {[%clk 0:00:10.3]} 63. Rg1
{[%clk 0:00:14.2]} 63... Kd7 {[%clk 0:00:12.2]} 64. Rxg4 {[%clk 0:00:14.8]}
64... Kd6 {[%clk 0:00:14.1]} 65. Rd4+ {[%clk 0:00:14.8]} 65... Ke5 {[%clk
0:00:16]} 66. Kc5 {[%clk 0:00:15.4]} 66... Ke6 {[%clk 0:00:16.6]} 67. Rd5 {[%clk
0:00:15.4]} 67... Ke7 {[%clk 0:00:16.6]} 68. Rd6 {[%clk 0:00:16.4]} 68... Ke8
{[%clk 0:00:17.3]} 69. Kc6 {[%clk 0:00:16.7]} 69... Ke7 {[%clk 0:00:19.2]} 70.
Kc7 {[%clk 0:00:17.6]} 70... Kf7 {[%clk 0:00:21.1]} 71. Kd7 {[%clk 0:00:18.1]}
71... Kg7 {[%clk 0:00:22.8]} 72. Ke7 {[%clk 0:00:18.5]} 72... Kg8 {[%clk
0:00:24.6]} 73. Rf6 {[%clk 0:00:18.8]} 73... Kg7 {[%clk 0:00:26]} 74. Ke6 {[%clk
0:00:19.7]} 74... Kg8 {[%clk 0:00:27.9]} 75. Rf7 {[%clk 0:00:20.5]} 75... Kh8
{[%clk 0:00:29.8]} 76. Kf6 {[%clk 0:00:21.2]} 76... Kg8 {[%clk 0:00:31.7]} 77.
Kg6 {[%clk 0:00:21.9]} 77... Kh8 {[%clk 0:00:33.6]} 78. Rf8# {[%clk 0:00:22.9]}
1-0

[Event "*** Qualifier 4: Titled Tuesday 3|2 Blitz"]
[Site "Chess.com"]
[Date "2017.04.25"]
[Round "4"]
[White "OparinGrigoriy"]
[Black "pedromartinez91"]
[Result "0-1"]
[WhiteElo "2568"]
[BlackElo "2314"]
[TimeControl "180+2"]
[EndTime "13:51:07 PDT"]
[Termination "pedromartinez91 won by resignation"]

1. Nf3 {[%clk 0:03:02]} 1... e6 {[%clk 0:03:00.5]} 2. g3 {[%clk 0:03:03.9]} 2...
d5 {[%clk 0:03:01.4]} 3. Bg2 {[%clk 0:03:05.8]} 3... Nf6 {[%clk 0:03:02.8]} 4.
O-O {[%clk 0:03:07.7]} 4... Be7 {[%clk 0:03:04.4]} 5. b3 {[%clk 0:03:09.6]} 5...
O-O {[%clk 0:03:05.2]} 6. Bb2 {[%clk 0:03:11.5]} 6... a5 {[%clk 0:03:06.7]} 7.
c4 {[%clk 0:03:13.4]} 7... a4 {[%clk 0:03:07.3]} 8. cxd5 {[%clk 0:03:14.8]} 8...
exd5 {[%clk 0:03:07.7]} 9. bxa4 {[%clk 0:03:16.4]} 9... Na6 {[%clk 0:02:54.7]}
10. Nc3 {[%clk 0:03:17.8]} 10... Nc5 {[%clk 0:02:52.7]} 11. d4 {[%clk 0:03:18]}
11... Nce4 {[%clk 0:02:41.5]} 12. Ne5 {[%clk 0:03:18.9]} 12... c6 {[%clk
0:02:13.6]} 13. Nxe4 {[%clk 0:03:13]} 13... Nxe4 {[%clk 0:02:11.2]} 14. f3
{[%clk 0:03:09.8]} 14... Nd6 {[%clk 0:02:11.8]} 15. e4 {[%clk 0:03:10.6]} 15...
f6 {[%clk 0:02:01.5]} 16. Nd3 {[%clk 0:03:11]} 16... Nc4 {[%clk 0:01:58.3]} 17.
Bc1 {[%clk 0:02:57.6]} 17... dxe4 {[%clk 0:01:48.9]} 18. Nc5 {[%clk 0:02:56.1]}
18... Bxc5 {[%clk 0:01:41.3]} 19. dxc5 {[%clk 0:02:57]} 19... Qxd1 {[%clk
0:01:34.9]} 20. Rxd1 {[%clk 0:02:58.9]} 20... e3 {[%clk 0:01:32.6]} 21. Bf1
{[%clk 0:02:58.6]} 21... Be6 {[%clk 0:01:06]} 22. Bxc4 {[%clk 0:02:59.3]} 22...
Bxc4 {[%clk 0:01:06.1]} 23. Bxe3 {[%clk 0:03:01]} 23... Rxa4 {[%clk 0:01:00.5]}
24. Rd4 {[%clk 0:03:01.8]} 24... Rxa2 {[%clk 0:00:56.8]} 25. Rxa2 {[%clk
0:03:02.6]} 25... Bxa2 {[%clk 0:00:57.5]} 26. Rd7 {[%clk 0:03:04.3]} 26... Rf7
{[%clk 0:00:53.8]} 27. Rd8+ {[%clk 0:03:05.7]} 27... Rf8 {[%clk 0:00:54.8]} 28.
Rd7 {[%clk 0:03:07.6]} 28... Rf7 {[%clk 0:00:55]} 29. Rd6 {[%clk 0:03:09.1]}
29... Bd5 {[%clk 0:00:54.6]} 30. Kf2 {[%clk 0:03:10.7]} 30... Re7 {[%clk
0:00:39.3]} 31. Rd8+ {[%clk 0:03:11.2]} 31... Kf7 {[%clk 0:00:35.6]} 32. Rb8
{[%clk 0:03:12.4]} 32... Rd7 {[%clk 0:00:35.1]} 33. g4 {[%clk 0:03:13.7]} 33...
Bc4 {[%clk 0:00:31.7]} 34. h4 {[%clk 0:03:14.3]} 34... Ba6 {[%clk 0:00:32.5]}
35. h5 {[%clk 0:03:13.6]} 35... g6 {[%clk 0:00:32]} 36. h6 {[%clk 0:03:10.2]}
36... g5 {[%clk 0:00:32.4]} 37. f4 {[%clk 0:03:11.6]} 37... gxf4 {[%clk
0:00:21.2]} 38. Bxf4 {[%clk 0:03:12.6]} 38... Ke6 {[%clk 0:00:21.1]} 39. Kg3
{[%clk 0:03:07.7]} 39... Kd5 {[%clk 0:00:20.5]} 40. Be3 {[%clk 0:03:07.9]} 40...
Ke4 {[%clk 0:00:21]} 41. Re8+ {[%clk 0:03:09]} 41... Kd5 {[%clk 0:00:21.1]} 42.
Rg8 {[%clk 0:03:09.4]} 42... Bd3 {[%clk 0:00:20.5]} 43. Kf4 {[%clk 0:03:03.9]}
43... Bg6 {[%clk 0:00:20.1]} 44. Bf2 {[%clk 0:03:04.8]} 44... Re7 {[%clk
0:00:20.2]} 45. Rd8+ {[%clk 0:03:04.3]} 45... Kc4 {[%clk 0:00:18.8]} 46. Rd4+
{[%clk 0:03:04]} 46... Kb5 {[%clk 0:00:18.6]} 47. Rd6 {[%clk 0:03:04.7]} 47...
Re4+ {[%clk 0:00:19.3]} 48. Kg3 {[%clk 0:03:06]} 48... f5 {[%clk 0:00:20.3]} 49.
g5 {[%clk 0:02:20]} 49... Rg4+ {[%clk 0:00:20.4]} 50. Kf3 {[%clk 0:02:21.3]}
50... Rxg5 {[%clk 0:00:20.9]} 51. Be3 {[%clk 0:02:22.7]} 51... Rg4 {[%clk
0:00:19.4]} 52. Rd7 {[%clk 0:02:23.9]} 52... Ka6 {[%clk 0:00:20]} 53. Bf4 {[%clk
0:02:23.8]} 53... Rg1 {[%clk 0:00:18.8]} 54. Rg7 {[%clk 0:02:24.1]} 54... Rf1+
{[%clk 0:00:19.4]} 55. Ke3 {[%clk 0:02:24.4]} 55... Re1+ {[%clk 0:00:19.1]} 56.
Kf2 {[%clk 0:02:23.4]} 56... Re6 {[%clk 0:00:19.5]} 57. Kg3 {[%clk 0:02:22.7]}
57... Ka7 {[%clk 0:00:19.6]} 58. Kh4 {[%clk 0:02:23.8]} 58... Ka6 {[%clk
0:00:20.8]} 59. Kg5 {[%clk 0:02:25.2]} 59... Ka7 {[%clk 0:00:22]} 60. Bc7 {[%clk
0:02:22.1]} 60... Ka6 {[%clk 0:00:22.7]} 61. Bb6 {[%clk 0:02:23.4]} 61... Re2
{[%clk 0:00:20.4]} 62. Rg8 {[%clk 0:02:23.8]} 62... Rg2+ {[%clk 0:00:20.6]} 63.
Kf4 {[%clk 0:02:25.1]} 63... Rg4+ {[%clk 0:00:21.5]} 64. Ke3 {[%clk 0:02:26.2]}
64... f4+ {[%clk 0:00:21.7]} 65. Kf3 {[%clk 0:02:26.4]} 65... Rh4 {[%clk
0:00:18.4]} 66. Ra8+ {[%clk 0:02:22.5]} 66... Kb5 {[%clk 0:00:18.5]} 67. Ra5+
{[%clk 0:02:24.1]} 67... Kb4 {[%clk 0:00:18.8]} 68. Ra7 {[%clk 0:02:25]} 68...
Bh5+ {[%clk 0:00:18.5]} 69. Kf2 {[%clk 0:02:26.5]} 69... f3 {[%clk 0:00:18.4]}
70. Rxb7 {[%clk 0:02:27.7]} 70... Rh2+ {[%clk 0:00:18.9]} 71. Kf1 {[%clk
0:02:05.6]} 71... Kc4 {[%clk 0:00:19]} 72. Rxh7 {[%clk 0:02:05.8]} 72... Bg4
{[%clk 0:00:18.8]} 73. Rf7 {[%clk 0:02:05.2]} 73... Rxh6 {[%clk 0:00:18.4]} 74.
Rf4+ {[%clk 0:02:05.7]} 74... Kd3 {[%clk 0:00:17.4]} 75. Rxg4 {[%clk 0:02:07.1]}
75... Ke3 {[%clk 0:00:18.4]} 76. Bd8 {[%clk 0:02:01.2]} 76... Rh1+ {[%clk
0:00:18.7]} 77. Rg1 {[%clk 0:02:02.4]} 77... Rh5 {[%clk 0:00:04.9]} 78. Bg5+
{[%clk 0:02:01.7]} 78... Kd4 {[%clk 0:00:06]} 79. Be7 {[%clk 0:02:02.6]} 79...
Ke3 {[%clk 0:00:06.1]} 80. Bd6 {[%clk 0:01:57]} 80... Rd5 {[%clk 0:00:05.8]} 81.
Bg3 {[%clk 0:01:44]} 81... Rd1+ {[%clk 0:00:05.6]} 82. Be1 {[%clk 0:01:45.3]}
82... Rxe1+ {[%clk 0:00:02.1]} 83. Kxe1 {[%clk 0:01:47.2]} 83... f2+ {[%clk
0:00:03.1]} 84. Kf1 {[%clk 0:01:48.7]} 84... fxg1=Q+ {[%clk 0:00:03.6]} 85. Kxg1
{[%clk 0:01:50.6]} 85... Kd4 {[%clk 0:00:04.7]} 86. Kf2 {[%clk 0:01:52.5]} 86...
Kxc5 {[%clk 0:00:06.1]} 87. Ke3 {[%clk 0:01:54.4]} 87... Kb4 {[%clk 0:00:06.4]}
88. Kd3 {[%clk 0:01:56.3]} 88... c5 {[%clk 0:00:06.1]} 89. Kc2 {[%clk
0:01:56.8]} 89... Kc4 {[%clk 0:00:07.2]} 90. Kb2 {[%clk 0:01:58.3]} 90... Kd3
{[%clk 0:00:08.2]} 91. Kb1 {[%clk 0:01:59.7]} 91... c4 {[%clk 0:00:08.8]} 92.
Kc1 {[%clk 0:02:01]} 92... Kc3 {[%clk 0:00:09.9]} 93. Kd1 {[%clk 0:02:01.9]}
93... Kb2 {[%clk 0:00:10.9]} 94. Kd2 {[%clk 0:02:03.8]} 0-1

[Event "*** Qualifier 4: Titled Tuesday 3|2 Blitz"]
[Site "Chess.com"]
[Date "2017.04.25"]
[Round "4"]
[White "TheCount"]
[Black "SerGo055"]
[Result "1/2-1/2"]
[WhiteElo "2460"]
[BlackElo "2329"]
[TimeControl "180+2"]
[EndTime "13:51:10 PDT"]
[Termination "Game drawn - insufficient material"]

1. Nf3 {[%clk 0:02:58.6]} 1... Nf6 {[%clk 0:03:00.4]} 2. g3 {[%clk 0:02:59.4]}
2... d5 {[%clk 0:03:01.2]} 3. Bg2 {[%clk 0:03:00.8]} 3... c6 {[%clk 0:03:02.4]}
4. c4 {[%clk 0:03:00.6]} 4... Bf5 {[%clk 0:03:01.9]} 5. O-O {[%clk 0:03:00.8]}
5... e6 {[%clk 0:03:03.1]} 6. b3 {[%clk 0:03:00.2]} 6... h6 {[%clk 0:03:02.3]}
7. Bb2 {[%clk 0:03:01.2]} 7... Be7 {[%clk 0:03:03.4]} 8. d3 {[%clk 0:03:02.5]}
8... O-O {[%clk 0:03:04.2]} 9. Nbd2 {[%clk 0:03:02.4]} 9... Nbd7 {[%clk
0:03:05]} 10. Re1 {[%clk 0:03:02.9]} 10... Bh7 {[%clk 0:03:06]} 11. Nd4 {[%clk
0:02:40.2]} 11... a5 {[%clk 0:02:57.8]} 12. a3 {[%clk 0:02:24.7]} 12... Qb6
{[%clk 0:02:54.4]} 13. Bc3 {[%clk 0:02:10.9]} 13... Rfd8 {[%clk 0:02:45.1]} 14.
Rb1 {[%clk 0:02:12]} 14... Bxa3 {[%clk 0:02:42.6]} 15. Nc2 {[%clk 0:02:05.2]}
15... Bc5 {[%clk 0:02:34.4]} 16. d4 {[%clk 0:01:45.3]} 16... Be7 {[%clk
0:02:27.9]} 17. c5 {[%clk 0:01:43.4]} 17... Qc7 {[%clk 0:02:25.9]} 18. e4 {[%clk
0:01:14.1]} 18... dxe4 {[%clk 0:02:25.9]} 19. Ne3 {[%clk 0:01:13]} 19... Nd5
{[%clk 0:02:23.1]} 20. Ba1 {[%clk 0:01:10.4]} 20... f5 {[%clk 0:02:14.5]} 21.
Ndc4 {[%clk 0:01:09.5]} 21... e5 {[%clk 0:01:56.3]} 22. Qh5 {[%clk 0:01:01.8]}
22... N7f6 {[%clk 0:01:50.6]} 23. Qh3 {[%clk 0:01:02.6]} 23... Nxe3 {[%clk
0:01:26.7]} 24. fxe3 {[%clk 0:01:03.3]} 24... exd4 {[%clk 0:01:23]} 25. Bxd4
{[%clk 0:01:05.2]} 25... Ng4 {[%clk 0:01:15.1]} 26. Bxe4 {[%clk 0:00:57.8]}
26... Nxe3 {[%clk 0:01:01.3]} 27. Bxe3 {[%clk 0:00:27.7]} 27... fxe4 {[%clk
0:01:02]} 28. Qe6+ {[%clk 0:00:29]} 28... Kh8 {[%clk 0:01:01.6]} 29. Ne5 {[%clk
0:00:30.7]} 29... Rf8 {[%clk 0:00:46.4]} 30. Nf7+ {[%clk 0:00:27.3]} 30... Kg8
{[%clk 0:00:35.8]} 31. Nxh6+ {[%clk 0:00:26.8]} 31... Kh8 {[%clk 0:00:37]} 32.
Nf7+ {[%clk 0:00:27.7]} 32... Kg8 {[%clk 0:00:38.1]} 33. Nh6+ {[%clk 0:00:27.3]}
33... Kh8 {[%clk 0:00:38.8]} 34. Nf7+ {[%clk 0:00:29.2]} 34... Kg8 {[%clk
0:00:39.9]} 35. Ng5+ {[%clk 0:00:15.3]} 35... Kh8 {[%clk 0:00:39]} 36. Nxh7
{[%clk 0:00:11]} 36... Kxh7 {[%clk 0:00:39.5]} 37. Qxe4+ {[%clk 0:00:12.3]}
37... Kh8 {[%clk 0:00:39.1]} 38. Rbd1 {[%clk 0:00:11.7]} 38... Rae8 {[%clk
0:00:37.9]} 39. Qg6 {[%clk 0:00:09]} 39... Bf6 {[%clk 0:00:36.4]} 40. Bf4 {[%clk
0:00:08.5]} 40... Rxe1+ {[%clk 0:00:21.9]} 41. Rxe1 {[%clk 0:00:10.4]} 41... Qd7
{[%clk 0:00:22.6]} 42. Bd6 {[%clk 0:00:11.7]} 42... Qf7 {[%clk 0:00:18.3]} 43.
Qxf7 {[%clk 0:00:07.8]} 43... Rxf7 {[%clk 0:00:19.3]} 44. Re8+ {[%clk
0:00:06.3]} 44... Kh7 {[%clk 0:00:20.1]} 45. Re4 {[%clk 0:00:07.9]} 45... Rd7
{[%clk 0:00:20.5]} 46. Ra4 {[%clk 0:00:08.6]} 46... b6 {[%clk 0:00:15.5]} 47.
Kg2 {[%clk 0:00:05.3]} 47... Bd8 {[%clk 0:00:15.3]} 48. Re4 {[%clk 0:00:04]}
48... bxc5 {[%clk 0:00:15]} 49. Bxc5 {[%clk 0:00:05.8]} 49... Rd3 {[%clk
0:00:15.8]} 50. Re3 {[%clk 0:00:07.3]} 50... Rxe3 {[%clk 0:00:15.2]} 51. Bxe3
{[%clk 0:00:09.2]} 51... Kg6 {[%clk 0:00:16.7]} 52. Kf3 {[%clk 0:00:10.8]} 52...
Kf5 {[%clk 0:00:18]} 53. Bd4 {[%clk 0:00:11.2]} 53... g6 {[%clk 0:00:18.5]} 54.
h4 {[%clk 0:00:11.2]} 54... Ke6 {[%clk 0:00:18.9]} 55. Kg4 {[%clk 0:00:10.5]}
55... Kd5 {[%clk 0:00:19.8]} 56. Bg7 {[%clk 0:00:11.4]} 56... c5 {[%clk
0:00:19.9]} 57. h5 {[%clk 0:00:12.4]} 57... gxh5+ {[%clk 0:00:20.5]} 58. Kxh5
{[%clk 0:00:14.3]} 58... c4 {[%clk 0:00:21.2]} 59. bxc4+ {[%clk 0:00:15.2]}
59... Kxc4 {[%clk 0:00:22.5]} 60. g4 {[%clk 0:00:15.2]} 60... a4 {[%clk
0:00:22.9]} 61. g5 {[%clk 0:00:16.7]} 61... a3 {[%clk 0:00:23.9]} 62. g6 {[%clk
0:00:17.8]} 62... Be7 {[%clk 0:00:18.7]} 63. Kh6 {[%clk 0:00:14.6]} 63... a2
{[%clk 0:00:18.2]} 64. Ba1 {[%clk 0:00:13.2]} 64... Bf8+ {[%clk 0:00:15.8]} 65.
Kh7 {[%clk 0:00:13]} 65... Kb3 {[%clk 0:00:16.2]} 66. Kg8 {[%clk 0:00:13.6]}
66... Bh6 {[%clk 0:00:16.9]} 67. Kh7 {[%clk 0:00:15]} 67... Bf8 {[%clk
0:00:17.6]} 68. Kg8 {[%clk 0:00:15.1]} 68... Bh6 {[%clk 0:00:18.2]} 69. Kh7
{[%clk 0:00:14.6]} 69... Bf8 {[%clk 0:00:18.7]} 70. g7 {[%clk 0:00:16]} 70...
Bxg7 {[%clk 0:00:19.5]} 71. Kxg7 {[%clk 0:00:17.6]} 71... Kc2 {[%clk 0:00:20.7]}
72. Bf6 {[%clk 0:00:19]} 72... Kb1 {[%clk 0:00:22.1]} 73. Kg6 {[%clk 0:00:20.5]}
73... a1=Q {[%clk 0:00:22.9]} 74. Bxa1 {[%clk 0:00:21.6]} 1/2-1/2